bitfinex-derivatives/quotes_BTCF0:USTF0_20251217
["timestamp","ask_amount","ask_price","bid_price","bid_amount"]
[1765996179210,0.0125639,86503.0,86500.0,7e-08]
[1765996179612,0.001,86503.0,86500.0,7e-08]
[1765996184419,0.0115572,86554.0,86502.0,0.3608]
[1765996184723,4e-08,86538.0,86537.0,0.7216]
[1765996185025,4e-08,86538.0,86537.0,0.38826]
[1765996185208,4e-08,86538.0,86537.0,0.22159]
[1765996185723,4e-08,86538.0,86537.0,0.05492]
[1765996186019,0.00017337,86546.0,86535.0,0.3608]
[1765996186221,0.00017337,86546.0,86537.0,0.0115593]
[1765996186718,0.00017337,86546.0,86542.0,0.3608]
[1765996187515,0.3723583,86545.0,86535.0,0.36097337]
[1765996187715,0.3723583,86545.0,86535.0,0.00017337]
[1765996188816,0.3608,86545.0,86535.0,0.00017337]
[1765996189314,0.3608,86538.0,86535.0,0.00017337]
[1765996189723,0.3618,86545.0,86535.0,0.00017337]
[1765996191224,0.3608,86538.0,86535.0,0.00017337]
[1765996192325,0.00017337,86546.0,86535.0,0.00017337]
[1765996192326,0.00017337,86546.0,86537.0,0.3608]
[1765996196232,0.0115585,86544.0,86537.0,0.3608]
[1765996196738,0.3723593,86538.0,86535.0,7e-08]
[1765996198429,0.3733593,86538.0,86535.0,7e-08]
[1765996199830,0.0115595,86536.0,86535.0,7e-08]
[1765996200128,0.0115602,86531.0,86520.0,0.18225994]
[1765996200341,0.3618,86538.0,86519.0,0.3608]
[1765996200342,0.3608,86528.0,86519.0,0.3608]
[1765996200732,0.3608,86520.0,86500.0,0.18726001]
[1765996200929,0.3608,86513.0,86510.0,0.18225994]
[1765996201118,0.18225994,86520.0,86512.0,0.3608]
[1765996201320,0.18243331,86520.0,86512.0,0.3608]
[1765996201538,0.00017337,86520.0,86512.0,0.3608]
[1765996203232,7e-08,86529.0,86519.0,0.3608]
[1765996203432,0.0115587,86543.0,86530.0,0.0115602]
[1765996203633,0.0115583,86546.0,86540.0,0.3608]
[1765996203933,0.011558,86548.0,86540.0,0.3608]
[1765996204132,0.0115576,86551.0,86540.0,0.3608]
[1765996204533,0.0115578,86549.0,86540.0,0.3608]
[1765996205131,0.001,86548.0,86540.0,0.3608]
[1765996205326,0.001,86548.0,86540.0,0.372359]
[1765996205739,0.001,86549.0,86540.0,0.372359]
[1765996205925,0.00017337,86554.0,86548.0,0.3608]
[1765996208233,0.58874936,86550.0,86540.0,0.3608]
[1765996208938,0.3608,86550.0,86540.0,0.3608]
[1765996209140,0.3608,86550.0,86537.0,0.00017337]
[1765996209141,0.0115582,86547.0,86537.0,0.00017337]
[1765996209437,0.3608,86539.0,86537.0,7e-08]
[1765996211933,0.3723593,86539.0,86537.0,7e-08]
[1765996212238,0.3733593,86539.0,86537.0,7e-08]
[1765996213234,0.0115601,86533.0,86519.0,0.3608]
[1765996213430,0.3618,86539.0,86519.0,0.3608]
[1765996213740,0.3608,86532.0,86519.0,0.3608]
[1765996214241,0.3608,86532.0,86520.0,0.0115617]
[1765996214836,0.3608,86532.0,86519.0,0.3618]
[1765996215136,0.0115602,86531.0,86519.0,0.001]
[1765996215332,0.22791208,86530.0,86519.0,0.001]
[1765996215536,0.3608,86525.0,86519.0,0.001]
[1765996216445,0.3608,86525.0,86516.0,0.3608]
[1765996216641,0.3608,86525.0,86503.0,0.02884869]
[1765996216642,0.3608,86517.0,86503.0,0.02884869]
[1765996216846,0.3608,86504.0,86500.0,0.00500007]
[1765996217537,0.3608,86504.0,86500.0,7e-08]
[1765996218148,0.3608,86501.0,86500.0,7e-08]
[1765996222452,0.3608,86501.0,86498.0,8e-08]
[1765996223347,0.3618,86501.0,86498.0,8e-08]
[1765996223754,0.00017337,86511.0,86500.0,0.3608]
[1765996224055,0.00017337,86511.0,86500.0,0.60027628]
[1765996224254,0.00017337,86511.0,86500.0,0.58871208]
[1765996224551,0.00017337,86511.0,86501.0,0.0115642]
[1765996225143,0.00017337,86511.0,86500.0,0.3618]
[1765996225352,0.00017337,86511.0,86500.0,0.3733643]
[1765996226241,0.00017337,86511.0,86502.0,0.011564]
[1765996226455,0.00017337,86511.0,86500.0,0.3618]
[1765996226642,0.00017337,86511.0,86501.0,0.001]
[1765996226844,0.00017337,86511.0,86502.0,0.0115641]
[1765996228757,0.00017337,86511.0,86501.0,0.001]
[1765996228945,0.0115633,86508.0,86501.0,0.001]
[1765996229145,0.01173637,86511.0,86501.0,0.001]
[1765996229449,0.005,86522.0,86511.0,0.0115629]
[1765996229747,0.005,86522.0,86510.0,0.3608]
[1765996229748,0.005,86522.0,86512.0,0.0115627]
[1765996229955,0.005,86522.0,86510.0,0.3608]
[1765996230550,0.005,86522.0,86517.0,0.3608]
[1765996230753,0.3608,86539.0,86521.0,0.0115615]
[1765996231050,0.23946978,86550.0,86534.0,0.3608]
[1765996231051,0.22791208,86550.0,86534.0,0.3608]
[1765996231259,0.46071378,86554.0,86534.0,0.3608]
[1765996231553,0.3608,86558.0,86543.0,0.3608]
[1765996231751,0.3723567,86558.0,86543.0,0.3608]
[1765996232057,0.3608,86585.0,86553.0,0.3608]
[1765996232357,7e-08,86578.0,86573.0,0.0115546]
[1765996232759,7e-08,86578.0,86572.0,0.0115546]
[1765996233151,7e-08,86578.0,86568.0,0.0115552]
[1765996233458,7e-08,86578.0,86577.0,0.3608]
[1765996234054,7e-08,86578.0,86572.0,0.002]
[1765996234445,7e-08,86578.0,86566.0,0.36097326]
[1765996234647,7e-08,86578.0,86577.0,0.001]
[1765996236150,7e-08,86578.0,86572.0,0.001]
[1765996236660,7e-08,86578.0,86566.0,0.36097326]
[1765996236661,3.26e-06,86584.0,86575.0,0.3608]
[1765996236850,3.26e-06,86584.0,86583.0,0.3608]
[1765996238055,3.26e-06,86584.0,86583.0,0.3628]
[1765996238262,3.26e-06,86584.0,86583.0,0.3743533]
[1765996238453,0.005,86605.0,86586.0,0.0115528]
[1765996238656,0.005,86605.0,86599.0,0.3608]
[1765996239447,0.00017326,86611.0,86599.0,0.3608]
[1765996239655,0.00017326,86611.0,86608.0,0.3608]
[1765996239859,3.26e-06,86611.0,86608.0,0.3608]
[1765996240161,0.3723478,86625.0,86608.0,0.3608]
[1765996240162,0.0115478,86625.0,86608.0,0.3608]
[1765996240363,0.0115478,86625.0,86617.0,0.3608]
[1765996240862,0.0115481,86622.0,86608.0,0.3608]
[1765996241156,0.0115496,86611.0,86597.0,0.3608]
[1765996241359,0.3608,86612.0,86589.0,0.02930225]
[1765996241560,0.3608,86596.0,86589.0,0.02930225]
[1765996241761,0.3608,86596.0,86584.0,0.011553]
[1765996242360,0.3608,86596.0,86593.0,6e-08]
[1765996242857,0.00017326,86603.0,86593.0,6e-08]
[1765996243064,0.3608,86610.0,86593.0,6e-08]
[1765996243260,0.3608,86610.0,86597.0,0.0115513]
[1765996243462,0.002309,86618.0,86607.0,0.3608]
[1765996244562,0.002309,86618.0,86614.0,0.3608]
[1765996245862,0.3608,86615.0,86601.0,0.0115508]
[1765996247055,0.3608,86615.0,86601.0,0.0125508]
[1765996247465,0.3608,86615.0,86603.0,0.0115505]
[1765996247663,0.3608,86615.0,86605.0,0.0115502]
[1765996247859,0.3608,86615.0,86601.0,0.001]
[1765996247860,0.00017326,86621.0,86614.0,0.3608]
[1765996249369,0.00017326,86621.0,86615.0,0.011549]
[1765996249770,6e-08,86621.0,86615.0,0.011549]
[1765996249963,6e-08,86621.0,86619.0,0.0115483]
[1765996250163,0.3608,86638.0,86623.0,0.0115479]
[1765996250372,0.0165448,86647.0,86626.0,0.3608]
[1765996250569,0.0115451,86645.0,86633.0,0.3608]
[1765996250764,0.005,86647.0,86633.0,0.3608]
[1765996250964,0.005,86647.0,86633.0,0.3723465]
[1765996251164,0.0115451,86644.0,86633.0,0.3608]
[1765996251462,0.0115455,86642.0,86633.0,0.3608]
[1765996252160,0.0115453,86643.0,86633.0,0.3608]
[1765996252359,0.005,86647.0,86633.0,0.3608]
[1765996252572,0.0115454,86642.0,86633.0,0.3608]
[1765996252768,0.005,86647.0,86633.0,0.3608]
[1765996252972,0.005,86647.0,86641.0,0.3608]
[1765996253471,0.005,86647.0,86631.0,0.00017316]
[1765996253674,0.3608,86641.0,86633.0,0.0115465]
[1765996253860,0.3608,86641.0,86631.0,0.00017316]
[1765996254465,0.3723456,86641.0,86631.0,0.00017316]
[1765996254975,0.3608,86641.0,86631.0,0.00017316]
[1765996255176,0.3608,86641.0,86609.0,0.3608]
[1765996255177,0.3608,86633.0,86609.0,0.3608]
[1765996255375,0.0115473,86628.0,86611.0,0.0115495]
[1765996255575,0.33371979,86631.0,86609.0,0.3608]
[1765996255884,0.3723466,86633.0,86617.0,0.0115486]
[1765996256082,0.3608,86633.0,86619.0,0.0115484]
[1765996256470,0.3608,86633.0,86621.0,0.0115481]
[1765996256674,0.3608,86633.0,86623.0,0.0115479]
[1765996256881,0.3608,86633.0,86617.0,0.00017316]
[1765996257377,0.3608,86633.0,86622.0,0.011548]
[1765996257585,0.3723467,86633.0,86618.0,0.0115485]
[1765996257771,0.3608,86633.0,86620.0,0.0115483]
[1765996257972,0.3723467,86633.0,86617.0,0.01272176]
[1765996258282,0.011548,86623.0,86617.0,0.00117316]
[1765996258474,0.0115493,86613.0,86598.0,0.0115512]
[1765996258783,0.3608,86611.0,86602.0,0.0115507]
[1765996259373,0.3608,86611.0,86604.0,0.0115504]
[1765996259574,0.3608,86611.0,86599.0,0.00017316]
[1765996260072,0.0115497,86610.0,86599.0,0.00017316]
[1765996260277,0.3608,86611.0,86599.0,0.00017316]
[1765996260677,0.3608,86611.0,86599.0,6e-08]
[1765996260883,0.3608,86611.0,86590.0,0.38921854]
[1765996260884,0.3608,86601.0,86590.0,0.05549875]
[1765996261187,0.3608,86591.0,86590.0,0.05549875]
[1765996261482,0.3608,86601.0,86590.0,0.05549875]
[1765996262586,0.3723509,86601.0,86590.0,0.05549875]
[1765996263171,0.3608,86601.0,86590.0,0.06705105]
[1765996263472,0.00017316,86616.0,86596.0,0.3608]
[1765996263676,0.00017316,86616.0,86603.0,0.3608]
[1765996263980,0.3608,86621.0,86603.0,0.3608]
[1765996263981,0.3608,86621.0,86610.0,0.3723496]
[1765996264176,0.0115469,86631.0,86620.0,0.3608]
[1765996264376,0.0115472,86629.0,86620.0,0.3608]
[1765996264778,0.0115474,86627.0,86620.0,0.3608]
[1765996265176,0.36097316,86633.0,86620.0,0.3608]
[1765996265588,0.001,86629.0,86616.0,0.00017316]
[1765996265776,6e-08,86633.0,86630.0,0.0115469]
[1765996266773,6e-08,86633.0,86629.0,0.3608]
[1765996266972,0.01154666,86633.0,86629.0,0.3608]
[1765996267184,0.01154666,86633.0,86628.0,0.3608]
[1765996267584,0.01154666,86633.0,86616.0,0.01172196]
[1765996267585,0.3723472,86629.0,86616.0,0.00017316]
[1765996267894,0.3608,86629.0,86616.0,0.00017316]
[1765996268278,0.3608,86629.0,86617.0,0.0115487]
[1765996268476,6e-08,86633.0,86616.0,0.00017316]
[1765996268687,6e-08,86633.0,86626.0,0.3608]
[1765996270886,0.011548,86623.0,86616.0,0.00017316]
[1765996271102,0.3608,86617.0,86590.0,0.3608]
[1765996271282,0.3608,86617.0,86595.0,0.0115516]
[1765996271283,0.3608,86603.0,86595.0,0.0115516]
[1765996271485,0.3608,86603.0,86590.0,0.3723522]
[1765996272084,0.3608,86603.0,86592.0,0.011552]
[1765996272292,0.3608,86603.0,86590.0,0.3608]
[1765996272488,0.3608,86603.0,86594.0,0.0115517]
[1765996273486,0.3608,86603.0,86590.0,0.3608]
[1765996273687,0.3608,86603.0,86596.0,0.0115515]
[1765996274387,0.3608,86625.0,86601.0,0.3608]
[1765996274579,0.3608,86625.0,86611.0,0.3608]
[1765996275783,0.0115484,86620.0,86611.0,0.3608]
[1765996275983,0.0115486,86618.0,86611.0,0.19413]
[1765996276285,0.3608,86614.0,86609.0,0.00017316]
[1765996276897,0.3723477,86625.0,86612.0,0.0115493]
[1765996277792,0.011548,86623.0,86611.0,0.3608]
[1765996278181,0.3608,86625.0,86611.0,0.3608]
[1765996278386,0.0115483,86621.0,86611.0,0.3608]
[1765996278996,0.3608,86625.0,86611.0,0.3608]
[1765996279388,0.0115485,86619.0,86611.0,0.3608]
[1765996279696,0.3608,86625.0,86611.0,0.3608]
[1765996279897,0.3608,86616.0,86609.0,0.00017316]
[1765996280095,0.0115494,86612.0,86591.0,0.0115522]
[1765996280299,0.3608,86614.0,86593.0,0.0115519]
[1765996280300,0.3608,86603.0,86593.0,0.0115519]
[1765996280693,0.3608,86603.0,86595.0,0.0115516]
[1765996280896,0.3608,86603.0,86597.0,0.0115514]
[1765996281297,0.00017316,86609.0,86598.0,0.3723511]
[1765996281495,0.00017316,86609.0,86598.0,0.3608]
[1765996282299,0.00017316,86609.0,86599.0,0.0115511]
[1765996282501,0.00017316,86609.0,86598.0,0.3608]
[1765996282696,0.00017316,86609.0,86598.0,0.3723512]
[1765996283299,0.00017316,86609.0,86598.0,0.3608]
[1765996283497,0.3608,86602.0,86591.0,6e-08]
[1765996283701,0.0115513,86598.0,86591.0,6e-08]
[1765996283997,0.00017316,86609.0,86590.0,0.3608]
[1765996283998,0.01155,86608.0,86590.0,0.3608]
[1765996284197,0.36097316,86609.0,86590.0,0.3608]
[1765996284598,0.36097316,86609.0,86597.0,0.0115513]
[1765996284904,0.001,86598.0,86594.0,0.00017316]
[1765996285100,0.01155,86608.0,86594.0,0.00017316]
[1765996285300,0.0115505,86604.0,86594.0,0.00017316]
[1765996285498,0.0115501,86607.0,86594.0,0.00017316]
[1765996285808,0.0115504,86605.0,86594.0,0.00017316]
[1765996286203,0.0115503,86605.0,86594.0,0.00017316]
[1765996286398,0.0115507,86603.0,86594.0,0.00017316]
[1765996287401,0.0115505,86604.0,86594.0,0.00017316]
[1765996288104,0.011551,86600.0,86594.0,3.16e-06]
[1765996288307,0.0125506,86603.0,86594.0,3.16e-06]
[1765996289198,0.001,86603.0,86594.0,3.16e-06]
[1765996289399,0.3608,86602.0,86594.0,3.16e-06]
[1765996289906,0.011551,86600.0,86594.0,3.16e-06]
[1765996290701,0.3608,86602.0,86594.0,3.16e-06]
[1765996290900,0.3618,86602.0,86594.0,3.16e-06]
[1765996291307,0.3608,86602.0,86594.0,3.16e-06]
[1765996291501,0.001,86600.0,86594.0,3.16e-06]
[1765996291701,0.0115512,86599.0,86594.0,3.16e-06]
[1765996293001,0.3608,86595.0,86583.0,0.005]
[1765996293308,0.0115531,86585.0,86578.0,3.78e-06]
[1765996293494,0.3608,86581.0,86578.0,3.78e-06]
[1765996294301,8.371e-05,86580.0,86578.0,3.78e-06]
[1765996295906,0.36097316,86588.0,86578.0,3.78e-06]
[1765996296507,0.0115529,86586.0,86578.0,3.78e-06]
[1765996296805,0.36097316,86588.0,86578.0,3.78e-06]
[1765996296994,0.0115534,86582.0,86578.0,3.78e-06]
[1765996297194,0.0115534,86582.0,86571.0,0.00017316]
[1765996297195,0.0115545,86574.0,86571.0,0.00017316]
[1765996297394,0.3608,86572.0,86558.0,0.24644]
[1765996297599,0.3608,86572.0,86556.0,0.3608]
[1765996298205,0.3723548,86572.0,86556.0,0.3608]
[1765996299316,0.3608,86572.0,86556.0,0.3608]
[1765996299505,0.3608,86572.0,86564.0,0.0115557]
[1765996300217,0.00017316,86588.0,86568.0,0.3608]
[1765996300218,0.3608,86587.0,86568.0,0.3608]
[1765996300513,0.3608,86587.0,86578.0,0.0115539]
[1765996301015,0.3608,86587.0,86576.0,0.3608]
[1765996301313,0.3608,86587.0,86576.0,0.3723541]
[1765996301512,0.3608,86587.0,86576.0,0.3608]
[1765996301719,0.011554,86578.0,86574.0,3.26e-06]
[1765996301911,0.3608,86580.0,86574.0,3.26e-06]
[1765996303112,0.3618,86580.0,86574.0,3.26e-06]
[1765996303814,0.3608,86580.0,86574.0,3.26e-06]
[1765996304707,0.3723538,86580.0,86574.0,3.26e-06]
[1765996304909,0.3608,86580.0,86574.0,3.26e-06]
[1765996305213,0.0115541,86577.0,86574.0,3.26e-06]
[1765996306127,0.3608,86575.0,86537.0,0.00012869]
[1765996306427,0.3608,86556.0,86544.0,0.0115583]
[1765996306623,0.3608,86556.0,86543.0,0.3608]
[1765996306828,0.3608,86556.0,86549.0,0.0115578]
[1765996307031,0.00017326,86561.0,86551.0,0.3608]
[1765996307326,0.00017326,86561.0,86555.0,0.011557]
[1765996307527,6e-08,86561.0,86559.0,0.3608]
[1765996307829,6e-08,86561.0,86559.0,0.3723564]
[1765996308514,0.3608,86574.0,86564.0,0.0115557]
[1765996308717,0.3608,86574.0,86563.0,0.0115558]
[1765996308917,0.3608,86574.0,86559.0,0.3608]
[1765996309322,0.0115553,86568.0,86559.0,0.3608]
[1765996309523,0.3608,86567.0,86559.0,0.02746]
[1765996309719,0.3723555,86567.0,86551.0,0.01173076]
[1765996310027,0.3723555,86567.0,86559.0,0.001]
[1765996310433,0.3608,86560.0,86553.0,0.0115572]
[1765996312216,0.3608,86560.0,86551.0,0.00017326]
[1765996312727,0.3608,86560.0,86553.0,0.001]
[1765996313120,0.3608,86560.0,86551.0,0.00017326]
[1765996313431,0.3608,86560.0,86551.0,0.00117326]
[1765996314729,0.3608,86560.0,86552.0,0.0115574]
[1765996315034,0.3608,86560.0,86551.0,0.00017326]
[1765996315229,0.3608,86560.0,86553.0,0.0115572]
[1765996316435,0.3608,86560.0,86551.0,0.00117326]
[1765996316637,0.3608,86560.0,86551.0,0.00017326]
[1765996317232,0.3608,86560.0,86552.0,0.0115574]
[1765996318536,0.3608,86560.0,86554.0,0.0115571]
[1765996319132,0.3608,86560.0,86551.0,0.01173076]
[1765996319922,0.3608,86560.0,86551.0,0.00017326]
[1765996320227,0.3608,86560.0,86551.0,0.01173076]
[1765996320426,0.3608,86560.0,86551.0,0.00017326]
[1765996320933,0.3608,86560.0,86550.0,0.22763767]
[1765996321137,0.3608,86560.0,86551.0,0.0115574]
[1765996321321,0.0115565,86559.0,86550.0,0.22763767]
[1765996321728,0.0115579,86549.0,86538.0,0.00231114]
[1765996321932,0.3608,86542.0,86538.0,0.00231114]
[1765996323432,0.36097326,86552.0,86540.0,0.0115589]
[1765996324226,0.36097326,86552.0,86540.0,0.22763767]
[1765996324426,6e-08,86552.0,86542.0,0.3608]
[1765996325633,6e-08,86552.0,86542.0,0.3618]
[1765996326536,6e-08,86552.0,86547.0,0.011558]
[1765996326729,6e-08,86552.0,86542.0,0.3618]
[1765996326928,0.3608,86543.0,86538.0,0.0024844]
[1765996327335,6e-08,86552.0,86541.0,0.0115588]
[1765996327534,6e-08,86552.0,86544.0,0.3608]
[1765996327929,6e-08,86552.0,86549.0,0.0115578]
[1765996330241,6e-08,86552.0,86551.0,0.3608]
[1765996330934,0.3608,86572.0,86551.0,0.3608]
[1765996331140,0.0115551,86570.0,86563.0,0.3608]
[1765996331441,0.0115547,86573.0,86563.0,0.3608]
[1765996331636,0.0115547,86573.0,86563.0,0.24584]
[1765996331826,0.0115547,86573.0,86557.0,0.0115567]
[1765996332028,0.0115547,86573.0,86561.0,0.3608]
[1765996333341,0.0115549,86571.0,86561.0,0.3608]
[1765996334440,0.00017326,86574.0,86562.0,0.0115559]
[1765996334640,0.00017326,86574.0,86561.0,0.3608]
[1765996335035,0.0115549,86572.0,86561.0,0.3608]
[1765996335440,0.00017326,86574.0,86568.0,0.3608]
[1765996335745,0.01172786,86574.0,86568.0,0.3608]
[1765996335952,0.00017326,86574.0,86560.0,0.3608]
[1765996336138,0.01172786,86574.0,86568.0,0.3608]
[1765996336335,0.3608,86570.0,86560.0,0.3608]
[1765996336642,0.3608,86561.0,86556.0,0.00017326]
[1765996337236,0.3608,86561.0,86557.0,0.0115567]
[1765996337439,0.3608,86561.0,86556.0,0.00017326]
[1765996338142,0.3608,86561.0,86558.0,0.0115566]
[1765996339039,0.58843767,86570.0,86556.0,0.00017326]
[1765996339040,0.3608,86570.0,86556.0,0.00017326]
[1765996339240,0.3608,86570.0,86561.0,0.0115562]
[1765996339441,0.3608,86570.0,86563.0,0.0115559]
[1765996339638,0.00017326,86574.0,86568.0,0.0115552]
[1765996339834,0.00017326,86574.0,86572.0,0.3608]
[1765996339835,6e-08,86574.0,86572.0,0.3608]
[1765996340538,6e-08,86574.0,86572.0,0.3723546]
[1765996340944,6e-08,86574.0,86572.0,0.3608]
[1765996341150,6e-08,86574.0,86573.0,0.0115546]
[1765996341345,6e-08,86574.0,86564.0,0.3608]
[1765996341534,0.22763773,86574.0,86558.0,0.0115566]
[1765996341740,6e-08,86574.0,86560.0,0.0115562]
[1765996341949,0.3608,86570.0,86560.0,0.0115562]
[1765996342149,0.3608,86570.0,86562.0,0.011556]
[1765996342352,0.3608,86570.0,86556.0,0.00017326]
[1765996342746,0.3608,86570.0,86564.0,0.0115557]
[1765996344341,0.3608,86570.0,86558.0,0.0115565]
[1765996344648,0.3608,86570.0,86556.0,0.00017326]
[1765996344840,6e-08,86574.0,86569.0,0.3608]
[1765996345048,6e-08,86574.0,86572.0,0.0115546]
[1765996345437,6e-08,86574.0,86569.0,0.3608]
[1765996345640,6e-08,86574.0,86546.0,0.0115581]
[1765996345641,6e-08,86574.0,86552.0,0.3608]
[1765996345844,0.3608,86568.0,86561.0,0.0115562]
[1765996346550,6e-08,86574.0,86568.0,0.0115553]
[1765996346746,6e-08,86574.0,86568.0,0.0115552]
[1765996346949,6e-08,86574.0,86572.0,0.3608]
[1765996347654,6e-08,86574.0,86572.0,0.3723547]
[1765996348850,6e-08,86574.0,86572.0,0.3608]
[1765996349053,6e-08,86574.0,86564.0,0.3608]
[1765996349354,0.3608,86566.0,86544.0,0.02895636]
[1765996349651,0.3608,86566.0,86550.0,0.3608]
[1765996349853,0.22763767,86560.0,86550.0,0.3608]
[1765996350548,0.22763767,86560.0,86546.0,0.00017326]
[1765996350549,0.3723569,86556.0,86546.0,0.00017326]
[1765996350749,0.011557,86555.0,86546.0,0.00017326]
[1765996350957,0.3723569,86556.0,86546.0,0.00017326]
[1765996351340,0.3608,86556.0,86546.0,0.00017326]
[1765996353148,0.3608,86553.0,86546.0,0.00017326]
[1765996354166,0.3608,86563.0,86546.0,0.00017326]
[1765996354167,0.372356,86563.0,86552.0,0.3608]
[1765996354361,0.22763767,86570.0,86560.0,0.3608]
[1765996354761,0.3608,86575.0,86560.0,0.3608]
[1765996354956,0.011554,86578.0,86560.0,0.3723563]
[1765996355465,0.0115542,86576.0,86560.0,0.3723563]
[1765996355661,0.01155456,86574.0,86560.0,0.3723563]
[1765996356559,6e-08,86574.0,86560.0,0.3608]
[1765996356761,0.0115554,86567.0,86560.0,0.3618]
[1765996357962,0.3608,86564.0,86547.0,0.011558]
[1765996358160,0.3723558,86564.0,86549.0,0.3723577]
[1765996358361,0.3723558,86564.0,86553.0,0.0115572]
[1765996358362,0.3608,86564.0,86553.0,0.0115572]
[1765996358563,6e-08,86574.0,86549.0,0.3608]
[1765996358564,0.0115548,86572.0,86563.0,0.3608]
[1765996358763,0.011555,86570.0,86563.0,0.3608]
[1765996359366,0.0115553,86568.0,86563.0,0.3608]
[1765996360057,0.0115553,86568.0,86549.0,0.3608]
[1765996360058,0.3608,86564.0,86549.0,0.3608]
[1765996360663,0.0115567,86557.0,86543.0,0.0115586]
[1765996360858,0.0115565,86559.0,86545.0,0.0115582]
[1765996361059,0.3608,86564.0,86545.0,0.0115582]
[1765996361060,0.0115561,86562.0,86547.0,0.011558]
[1765996361254,0.3608,86564.0,86545.0,0.3608]
[1765996361455,0.3608,86556.0,86546.0,6e-08]
[1765996361674,0.0115573,86553.0,86546.0,6e-08]
[1765996361861,0.3608,86556.0,86546.0,6e-08]
[1765996363069,0.3608,86556.0,86546.0,0.00100006]
[1765996363654,0.3608,86556.0,86546.0,6e-08]
[1765996364167,0.3608,86556.0,86547.0,0.0115581]
[1765996364369,0.3608,86556.0,86546.0,6e-08]
[1765996365272,0.3608,86556.0,86546.0,0.00100006]
[1765996365775,0.3608,86556.0,86546.0,6e-08]
[1765996365965,0.3723569,86556.0,86546.0,6e-08]
[1765996366660,0.0115575,86551.0,86546.0,6e-08]
[1765996366870,0.0115573,86554.0,86546.0,6e-08]
[1765996367870,0.3723569,86556.0,86546.0,6e-08]
[1765996368173,0.0115574,86553.0,86546.0,6e-08]
[1765996368374,0.3608,86556.0,86546.0,6e-08]
[1765996368375,0.0115576,86551.0,86546.0,6e-08]
[1765996369064,0.3608,86556.0,86546.0,6e-08]
[1765996369673,0.0115575,86552.0,86546.0,6e-08]
[1765996370067,0.3608,86556.0,86546.0,6e-08]
[1765996371265,0.36080006,86574.0,86556.0,0.0115568]
[1765996371571,0.36080006,86574.0,86563.0,0.3723559]
[1765996371760,6e-08,86574.0,86563.0,0.3608]
[1765996371964,6e-08,86574.0,86570.0,0.372355]
[1765996372175,6e-08,86574.0,86570.0,0.3608]
[1765996375685,0.3608,86592.0,86586.0,0.0115528]
[1765996375877,0.3608,86607.0,86589.0,0.3608]
[1765996376066,0.3608,86614.0,86597.0,0.3723514]
[1765996376266,0.3608,86614.0,86597.0,0.3608]
[1765996376267,1e-07,86605.0,86597.0,0.3608]
[1765996376467,1e-07,86605.0,86603.0,0.0115505]
[1765996376688,1e-07,86605.0,86597.0,0.3608]
[1765996376881,1e-07,86605.0,86598.0,0.0115513]
[1765996377068,1e-07,86605.0,86597.0,0.3608]
[1765996377469,0.3608,86598.0,86577.0,0.3608]
[1765996377668,0.3608,86591.0,86579.0,0.0115537]
[1765996377974,0.3608,86591.0,86582.0,0.02816967]
[1765996378173,0.3608,86591.0,86583.0,0.0165532]
[1765996378480,0.3608,86591.0,86583.0,0.005]
[1765996380277,0.3608,86591.0,86577.0,0.3608]
[1765996380278,0.3608,86591.0,86577.0,0.372354]
[1765996380465,0.3608,86584.0,86577.0,0.011554]
[1765996380666,0.011554,86578.0,86559.0,0.3608]
[1765996380872,0.3608,86571.0,86562.0,0.011556]
[1765996381067,0.00017326,86577.0,86569.0,0.3608]
[1765996381579,0.00017326,86577.0,86569.0,0.372355]
[1765996381780,0.00017326,86577.0,86569.0,0.3608]
[1765996382277,0.00017326,86577.0,86570.0,0.0115549]
[1765996383478,0.3608,86593.0,86574.0,0.3608]
[1765996383978,0.0115525,86589.0,86574.0,0.3608]
[1765996384377,0.00017326,86590.0,86575.0,0.0115543]
[1765996384881,0.00017326,86590.0,86577.0,0.011554]
[1765996385179,0.00017326,86590.0,86583.0,0.0115531]
[1765996385483,6e-08,86590.0,86582.0,0.3608]
[1765996385679,6e-08,86590.0,86585.0,0.0115529]
[1765996385881,6e-08,86590.0,86582.0,0.3723534]
[1765996386073,6e-08,86590.0,86582.0,0.3608]
[1765996387386,6e-08,86590.0,86583.0,0.0115532]
[1765996388288,6e-08,86590.0,86582.0,0.3608]
[1765996388479,6e-08,86590.0,86577.0,0.011554]
[1765996388881,6e-08,86590.0,86583.0,0.3608]
[1765996389591,0.0115525,86589.0,86583.0,0.3608]
[1765996389777,0.0115525,86589.0,86574.0,0.3723544]
[1765996390183,0.0115531,86585.0,86574.0,0.3608]
[1765996390882,0.3608,86576.0,86573.0,0.00017326]
[1765996391084,0.3608,86587.0,86573.0,3.26e-06]
[1765996391281,0.01155246,86590.0,86576.0,0.0115542]
[1765996391781,6e-08,86590.0,86574.0,0.3608]
[1765996392090,0.0115526,86588.0,86574.0,0.3608]
[1765996392386,6e-08,86590.0,86574.0,0.3608]
[1765996392387,0.0115529,86586.0,86574.0,0.3608]
[1765996392582,0.3608,86581.0,86563.0,0.3608]
[1765996392888,0.0115542,86576.0,86563.0,0.3608]
[1765996393085,0.33401471,86580.0,86563.0,0.3608]
[1765996393588,0.0115543,86575.0,86563.0,0.36097326]
[1765996394284,0.0115538,86579.0,86565.0,0.0115556]
[1765996394691,0.3608,86581.0,86567.0,0.0115553]
[1765996395186,0.3608,86581.0,86563.0,0.36097326]
[1765996395690,0.0115537,86580.0,86573.0,0.3608]
[1765996395880,0.02746,86581.0,86573.0,0.3608]
[1765996396076,0.19413,86587.0,86574.0,0.0115544]
[1765996396280,6e-08,86590.0,86583.0,0.3608]
[1765996396790,0.01155246,86590.0,86583.0,0.3608]
[1765996396984,6e-08,86590.0,86583.0,0.3608]
[1765996397186,6e-08,86590.0,86588.0,0.0115525]
[1765996397387,6e-08,86590.0,86589.0,0.3608]
[1765996398190,0.0115497,86610.0,86594.0,0.0115517]
[1765996398490,0.0115497,86610.0,86604.0,0.3608]
[1765996398692,0.3608,86619.0,86604.0,0.3608]
[1765996398888,0.0115493,86613.0,86604.0,0.3608]
[1765996399593,0.01172206,86617.0,86611.0,0.3608]
[1765996399781,0.0115491,86614.0,86604.0,0.3608]
[1765996399981,0.0115495,86612.0,86604.0,0.3608]